[Event "46th Roda Open 2019"]
[Site "La Roda"]
[Date "2019.04.18"]
[Round "2.1"]
[White "Predke, Alexandr"]
[Black "Nicolas Zapata, Javier"]
[Result "1-0"]
[ECO "A49"]
[WhiteElo "2619"]
[BlackElo "2171"]
[Annotator "ChessBase"]
[PlyCount "83"]
[EventDate "2019.04.17"]
[EventType "swiss"]
[EventCountry "ESP"]
[SourceTitle "playchess.com"]
[Source "ChessBase"]
[SourceQuality "1"]
[TimeControl "5400+30"]

1. d4 {[%emt 0:00:00]} Nf6 {[%emt 0:03:08]} 2. Nf3 {[%emt 0:00:00]} g6 {[%emt 0:01:29]} 3. g3 {[%emt 0:00:00]} Bg7 {[%emt 0:00:13]} 4. Bg2 {[%emt 0:00:00]} d5 {[%emt 0:00:37]} 5. O-O {[%emt 0:01:06]} O-O {[%emt 0:00:07]} 6. c3 {[%emt 0:00:24]} Ne4 {[%emt 0:04:14]} 7. Bf4 {[%emt 0:01:33]} c5 {[%emt 0:05:46]} 8. dxc5 {[%emt 0:03:47]} Na6 {[%emt 0:07:38]} 9. Nbd2 {[%emt 0:01:12]} Naxc5 {[%emt 0:02:50]} 10. Nxe4 {[%emt 0:00:55]} Nxe4 {[%emt 0:14:41]} 11. Qb3 {[%emt 0:01:46]} Nc5 {[%emt 0:02:25]} 12. Qa3 {[%emt 0:03:49]} b6 {[%emt 0:03:59]} 13. Rfd1 {[%emt 0:21:06]} Bb7 {[%emt 0:01:22]} 14. c4 {[%emt 0:03:00]} d4 {[%emt 0:04:43]} 15. Nxd4 {[%emt 0:10:43]} Bxd4 {[%emt 0:10:03]} 16. Bxb7 {[%emt 0:01:21]} Nxb7 {[%emt 0:00:35]} 17. Bh6 {[%emt 0:02:05]} e5 {[%emt 0:16:54]} 18. e3 {[%emt 0:00:38]} Bc5 {[%emt 0:00:29]} 19. Rxd8 {[%emt 0:14:14]} Bxa3 {[%emt 0:00:03]} 20. Bxf8 {[%emt 0:00:03]} Rxd8 {[%emt 0:00:57]} 21. Bxa3 {[%emt 0:00:06]} Rd2 {[%emt 0:05:25]} 22. Bb4 {[%emt 0:04:46]} Rxb2 {[%emt 0:03:25]} 23. Bc3 {[%emt 0:00:06]} Rc2 {[%emt 0:00:03]} 24. Bxe5 {[%emt 0:00:03]} Nc5 {[%emt 0:00:05]} 25. Rd1 {[%emt 0:01:07]} f6 {[%emt 0:00:15]} 26. Bxf6 {[%emt 0:01:57]} Ne4 {[%emt 0:00:21]} 27. Rd8+ {[%emt 0:01:09]} Kf7 {[%emt 0:00:04]} 28. Bd4 {[%emt 0:00:02]} Nxf2 {[%emt 0:00:43]} 29. Rd7+ {[%emt 0:00:48]} Ke6 {[%emt 0:00:28]} 30. Rxa7 {[%emt 0:00:04]} Ng4 {[%emt 0:01:23]} 31. Rxh7 {[%emt 0:03:36]} g5 {[%emt 0:08:01]} 32. h4 {[%emt 0:10:25]} gxh4 {[%emt 0:02:56]} 33. gxh4 {[%emt 0:03:37]} Nh2 {[%emt 0:00:18]} 34. h5 {[%emt 0:01:28]} Rd2 {[%emt 0:00:38]} 35. Rh6+ {[%emt 0:00:21]} Kf5 {[%emt 0:00:23]} 36. Rf6+ {[%emt 0:00:57]} Kg4 {[%emt 0:00:03]} 37. h6 {[%emt 0:00:47]} Nf3+ {[%emt 0:01:13]} 38. Rxf3 {[%emt 0:01:52]} Kxf3 {[%emt 0:00:01]} 39. h7 {[%emt 0:00:06]} Rd1+ {[%emt 0:00:04]} 40. Kh2 {[%emt 0:00:01]} Rd2+ {[%emt 0:00:12]} 41. Kh3 {[%emt 0:00:02]} Rd1 {[%emt 0:01:09]} 42. Be5 {[%emt 0:00:01]} 1-0

[Event "46th Roda Open 2019"]
[Site "La Roda"]
[Date "2019.04.18"]
[Round "2.2"]
[White "Diaz Mino, Pablo"]
[Black "Grachev, Boris"]
[Result "1/2-1/2"]
[ECO "A40"]
[WhiteElo "2171"]
[BlackElo "2618"]
[Annotator "ChessBase"]
[PlyCount "171"]
[EventDate "2019.04.17"]
[EventType "swiss"]
[EventCountry "ESP"]
[SourceTitle "playchess.com"]
[Source "ChessBase"]
[SourceQuality "1"]
[TimeControl "5400+30"]

1. d4 {[%emt 0:00:00]} Nf6 {[%emt 0:00:00]} 2. c4 {[%emt 0:00:00]} e6 {[%emt 0:00:00]} 3. g3 {[%emt 0:00:00]} d5 {[%emt 0:02:35]} 4. Nf3 {[%emt 0:00:06]} Bb4+ {[%emt 0:00:46]} 5. Bd2 {[%emt 0:00:15]} Be7 {[%emt 0:01:04]} 6. Bg2 {[%emt 0:00:15]} O-O {[%emt 0:00:09]} 7. O-O {[%emt 0:00:14]} Nbd7 {[%emt 0:01:47]} 8. Qc2 {[%emt 0:00:42]} c6 {[%emt 0:00:44]} 9. Bf4 {[%emt 0:01:26]} b6 {[%emt 0:03:29]} 10. Nc3 {[%emt 0:08:03]} Ba6 {[%emt 0:04:01]} 11. cxd5 {[%emt 0:11:53]} cxd5 {[%emt 0:00:59]} 12. Rfc1 {[%emt 0:02:50]} b5 {[%emt 0:09:07]} 13. a3 {[%emt 0:03:38]} Rc8 {[%emt 0:00:27]} 14. Qd3 {[%emt 0:05:18]} Qb6 {[%emt 0:02:32]} 15. b4 {[%emt 0:01:01]} Bb7 {[%emt 0:12:43]} 16. Nd2 {[%emt 0:03:28]} a5 {[%emt 0:02:40]} 17. bxa5 {[%emt 0:02:19]} Qxa5 {[%emt 0:00:05]} 18. Qxb5 {[%emt 0:02:30]} Qa7 {[%emt 0:03:08]} 19. Qb3 {[%emt 0:08:10]} Ba6 {[%emt 0:07:14]} 20. e4 {[%emt 0:10:36]} dxe4 {[%emt 0:01:50]} 21. Ndxe4 {[%emt 0:07:43]} Qxd4 {[%emt 0:04:47]} 22. Rd1 {[%emt 0:02:25]} Qc4 {[%emt 0:04:51]} 23. Qb2 {[%emt 0:02:54]} Nxe4 {[%emt 0:13:40]} 24. Nxe4 {[%emt 0:01:33]} Nf6 {[%emt 0:02:13]} 25. Nd6 {[%emt 0:01:26]} Bxd6 {[%emt 0:00:46]} 26. Bxd6 {[%emt 0:02:22]} Rfd8 {[%emt 0:00:07]} 27. Bf1 {[%emt 0:01:40]} Qa4 {[%emt 0:02:55]} 28. Rd4 {[%emt 0:02:12]} Qc6 {[%emt 0:00:58]} 29. Bxa6 {[%emt 0:03:53]} Qxa6 {[%emt 0:00:06]} 30. Be5 {[%emt 0:00:35]} Rxd4 {[%emt 0:06:44]} 31. Qxd4 {[%emt 0:00:47]} Ne8 {[%emt 0:00:17]} 32. Qb4 {[%emt 0:03:44]} f6 {[%emt 0:01:55]} 33. Bf4 {[%emt 0:00:15]} e5 {[%emt 0:01:00]} 34. Be3 {[%emt 0:00:14]} Nd6 {[%emt 0:00:46]} 35. Rc1 {[%emt 0:06:16]} Rxc1+ {[%emt 0:02:33]} 36. Bxc1 {[%emt 0:00:07]} Qd3 {[%emt 0:01:32]} 37. Qd2 {[%emt 0:01:14]} e4 {[%emt 0:00:05]} 38. Qxd3 {[%emt 0:03:00]} exd3 {[%emt 0:00:05]} 39. Kf1 {[%emt 0:00:08]} Nc4 {[%emt 0:00:22]} 40. Ke1 {[%emt 0:00:17]} Kf7 {[%emt 0:00:08]} 41. a4 {[%emt 0:01:17]} Ke6 {[%emt 0:00:10]} 42. Bd2 {[%emt 0:00:22]} Kd5 {[%emt 0:01:40]} 43. a5 {[%emt 0:00:17]} Kc5 {[%emt 0:00:16]} 44. Bc3 {[%emt 0:00:29]} g6 {[%emt 0:01:07]} 45. Kd1 {[%emt 0:02:16]} f5 {[%emt 0:00:13]} 46. Ke1 {[%emt 0:00:25]} g5 {[%emt 0:00:23]} 47. Kd1 {[%emt 0:01:14]} g4 {[%emt 0:02:45]} 48. Ke1 {[%emt 0:00:03]} Kb5 {[%emt 0:00:04]} 49. Kd1 {[%emt 0:00:21]} Ka6 {[%emt 0:04:46]} 50. Ke1 {[%emt 0:00:08]} Kb7 {[%emt 0:00:03]} 51. Kd1 {[%emt 0:00:28]} Ka7 {[%emt 0:00:02]} 52. Ke1 {[%emt 0:00:08]} Ka6 {[%emt 0:00:04]} 53. Kd1 {[%emt 0:00:12]} Kb5 {[%emt 0:00:04]} 54. Ke1 {[%emt 0:00:47]} Nd6 {[%emt 0:01:16]} 55. a6 {[%emt 0:01:16]} Kxa6 {[%emt 0:01:32]} 56. Kd2 {[%emt 0:00:06]} Kb5 {[%emt 0:00:07]} 57. Kxd3 {[%emt 0:00:07]} Kc5 {[%emt 0:00:04]} 58. Ke3 {[%emt 0:01:35]} Kd5 {[%emt 0:00:09]} 59. f3 {[%emt 0:00:41]} h5 {[%emt 0:00:14]} 60. fxg4 {[%emt 0:00:28]} hxg4 {[%emt 0:00:05]} 61. Kf4 {[%emt 0:00:38]} Ke6 {[%emt 0:00:04]} 62. Bb4 {[%emt 0:00:50]} Ne4 {[%emt 0:00:07]} 63. Be1 {[%emt 0:00:07]} Kf6 {[%emt 0:00:50]} 64. Bb4 {[%emt 0:00:45]} Kg6 {[%emt 0:00:21]} 65. Ke3 {[%emt 0:00:36]} Ng5 {[%emt 0:00:40]} 66. Kf2 {[%emt 0:00:07]} Kf6 {[%emt 0:00:21]} 67. Bc3+ {[%emt 0:00:19]} Ke6 {[%emt 0:00:04]} 68. Kg2 {[%emt 0:00:09]} Kd5 {[%emt 0:00:19]} 69. Bd2 {[%emt 0:00:10]} Ne4 {[%emt 0:01:11]} 70. Be3 {[%emt 0:00:08]} Kc4 {[%emt 0:00:06]} 71. h3 {[%emt 0:00:21]} Kd3 {[%emt 0:00:05]} 72. hxg4 {[%emt 0:00:10]} fxg4 {[%emt 0:00:08]} 73. Bf4 {[%emt 0:00:03]} Ke2 {[%emt 0:00:04]} 74. Bc7 {[%emt 0:00:42]} Nf2 {[%emt 0:00:15]} 75. Bb6 {[%emt 0:00:40]} Nd1 {[%emt 0:00:05]} 76. Bc7 {[%emt 0:02:33]} Ne3+ {[%emt 0:00:07]} 77. Kg1 {[%emt 0:00:35]} Kf3 {[%emt 0:00:05]} 78. Bd6 {[%emt 0:00:20]} Nf5 {[%emt 0:00:06]} 79. Be5 {[%emt 0:00:27]} Nxg3 {[%emt 0:00:06]} 80. Bc7 {[%emt 0:00:20]} Ne2+ {[%emt 0:00:10]} 81. Kf1 {[%emt 0:00:20]} Nd4 {[%emt 0:00:45]} 82. Be5 {[%emt 0:00:35]} Nf5 {[%emt 0:00:59]} 83. Bc7 {[%emt 0:00:12]} Ng3+ {[%emt 0:00:19]} 84. Kg1 {[%emt 0:00:10]} Nh5 {[%emt 0:00:05]} 85. Be5 {[%emt 0:00:24]} g3 {[%emt 0:00:05]} 86. Bxg3 {[%emt 0:00:04]} 1/2-1/2

[Event "46th Roda Open 2019"]
[Site "La Roda"]
[Date "2019.04.18"]
[Round "2.8"]
[White "Carbonell Sancho, Marc"]
[Black "Ibarra Jerez, Jose Carlos"]
[Result "0-1"]
[ECO "B90"]
[WhiteElo "2149"]
[BlackElo "2542"]
[Annotator "ChessBase"]
[PlyCount "86"]
[EventDate "2019.04.17"]
[EventType "swiss"]
[EventCountry "ESP"]
[SourceTitle "playchess.com"]
[Source "ChessBase"]
[SourceQuality "1"]
[TimeControl "5400+30"]

1. e4 {[%emt 0:00:00]} c5 {[%emt 0:00:00]} 2. Nf3 {[%emt 0:00:00]} d6 {[%emt 0:00:15]} 3. d4 {[%emt 0:00:00]} Nf6 {[%emt 0:00:33]} 4. Nc3 {[%emt 0:00:00]} cxd4 {[%emt 0:00:31]} 5. Nxd4 {[%emt 0:00:00]} a6 {[%emt 0:00:15]} 6. Bc4 {[%emt 0:00:20]} e6 {[%emt 0:00:19]} 7. Bb3 {[%emt 0:00:06]} Nbd7 {[%emt 0:00:08]} 8. Bg5 {[%emt 0:00:54]} Nc5 {[%emt 0:01:07]} 9. O-O {[%emt 0:01:47]} Be7 {[%emt 0:01:44]} 10. Re1 {[%emt 0:01:00]} h6 {[%emt 0:02:02]} 11. Bh4 {[%emt 0:00:52]} Nxb3 {[%emt 0:01:13]} 12. axb3 {[%emt 0:02:14]} g5 {[%emt 0:00:34]} 13. Bg3 {[%emt 0:00:09]} e5 {[%emt 0:00:06]} 14. Nf5 {[%emt 0:05:16]} Nxe4 {[%emt 0:00:32]} 15. Nxd6+ {[%emt 0:19:07]} Qxd6 {[%emt 0:06:08]} 16. Rxe4 {[%emt 0:15:42]} Qxd1+ {[%emt 0:07:46]} 17. Rxd1 {[%emt 0:00:25]} f6 {[%emt 0:00:36]} 18. Nd5 {[%emt 0:01:05]} Bd8 {[%emt 0:02:25]} 19. c4 {[%emt 0:05:48]} Bf5 {[%emt 0:21:16]} 20. Re3 {[%emt 0:01:28]} O-O {[%emt 0:02:35]} 21. f3 {[%emt 0:01:16]} Rc8 {[%emt 0:03:35]} 22. Bf2 {[%emt 0:05:27]} Rf7 {[%emt 0:07:27]} 23. g4 {[%emt 0:07:58]} Bc2 {[%emt 0:05:55]} 24. Rc1 {[%emt 0:01:44]} Bg6 {[%emt 0:00:56]} 25. Re2 {[%emt 0:03:06]} h5 {[%emt 0:04:44]} 26. h3 {[%emt 0:00:17]} hxg4 {[%emt 0:00:38]} 27. hxg4 {[%emt 0:00:08]} Be7 {[%emt 0:04:49]} 28. Nxe7+ {[%emt 0:02:52]} Rxe7 {[%emt 0:00:20]} 29. Rd1 {[%emt 0:00:05]} Be8 {[%emt 0:01:15]} 30. Rd6 {[%emt 0:01:33]} Kf7 {[%emt 0:01:58]} 31. Bb6 {[%emt 0:03:10]} Bc6 {[%emt 0:06:01]} 32. Rh2 {[%emt 0:01:34]} Kg7 {[%emt 0:00:22]} 33. Kf2 {[%emt 0:00:13]} Rce8 {[%emt 0:02:58]} 34. Rh5 {[%emt 0:06:34]} Re6 {[%emt 0:04:24]} 35. Rxe6 {[%emt 0:01:29]} Rxe6 {[%emt 0:00:02]} 36. Be3 {[%emt 0:00:02]} Rd6 {[%emt 0:01:37]} 37. Ke2 {[%emt 0:02:45]} e4 {[%emt 0:01:10]} 38. fxe4 {[%emt 0:01:39]} Bxe4 {[%emt 0:00:09]} 39. Bd2 {[%emt 0:00:13]} Bf3+ {[%emt 0:00:55]} 40. Kxf3 {[%emt 0:03:20]} Rxd2 {[%emt 0:00:06]} 41. Rh3 {[%emt 0:00:20]} Rd3+ {[%emt 0:00:11]} 42. Kg2 {[%emt 0:00:03]} Rxh3 {[%emt 0:00:56]} 43. Kxh3 {[%emt 0:00:01]} a5 {[%emt 0:01:09]} 0-1

[Event "46th Roda Open 2019"]
[Site "La Roda"]
[Date "2019.04.18"]
[Round "3.1"]
[White "Del Rey, Diego"]
[Black "Predke, Alexandr"]
[Result "0-1"]
[ECO "B18"]
[WhiteElo "2355"]
[BlackElo "2619"]
[Annotator "RC"]
[PlyCount "110"]
[EventDate "2019.04.17"]
[EventType "swiss"]
[EventCountry "ESP"]
[SourceTitle "playchess.com"]
[Source "ChessBase"]
[SourceQuality "1"]
[TimeControl "5400+30"]

1. e4 {[%emt 0:01:11]} c6 {[%emt 0:03:08]} 2. d4 {[%emt 0:00:08]} d5 {[%emt 0:00:04]} 3. Nd2 {[%emt 0:00:24]} dxe4 {[%emt 0:00:33]} 4. Nxe4 {[%emt 0:00:07]} Bf5 {[%emt 0:00:13]} 5. Ng3 {[%emt 0:00:07]} Bg6 {[%emt 0:00:06]} 6. Nh3 {[%emt 0:00:05]} e6 {[%emt 0:04:02]} 7. Nf4 {[%emt 0:00:19]} Qh4 {[%emt 0:01:37]} 8. c3 {[%emt 0:03:42]} Nd7 {[%emt 0:02:35]} 9. Qf3 {[%emt 0:01:12]} Ngf6 {[%emt 0:02:36]} 10. Nxg6 {[%emt 0:02:16]} hxg6 {[%emt 0:00:11]} 11. Qf4 {[%emt 0:01:45]} Qxf4 {[%emt 0:09:40]} 12. Bxf4 {[%emt 0:00:02]} Nd5 {[%emt 0:00:07]} 13. Bd2 {[%emt 0:01:53]} N7f6 {[%emt 0:00:05]} 14. Bd3 {[%emt 0:00:53]} Bd6 {[%emt 0:04:03]} 15. Ne4 {[%emt 0:01:00]} Bf4 {[%emt 0:04:04]} 16. h4 {[%emt 0:08:56]} Ke7 {[%emt 0:13:46]} 17. g3 {[%emt 0:04:18]} Bxd2+ {[%emt 0:01:03]} 18. Kxd2 {[%emt 0:00:08]} Nxe4+ {[%emt 0:01:52]} 19. Bxe4 {[%emt 0:00:04]} Nf6 {[%emt 0:00:31]} 20. Bf3 {[%emt 0:00:22]} Ne8 {[%emt 0:01:01]} 21. c4 {[%emt 0:02:45]} Nd6 {[%emt 0:01:10]} 22. Kc3 {[%emt 0:00:06]} Kf6 {[%emt 0:05:34]} 23. a4 {[%emt 0:06:37]} a5 {[%emt 0:01:26]} 24. Rab1 {[%emt 0:02:12]} Nf5 {[%emt 0:06:29]} 25. Rhd1 {[%emt 0:05:30]} Rhd8 {[%emt 0:02:36]} 26. Rd3 {[%emt 0:07:19]} Rd7 {[%emt 0:01:42]} 27. Rbd1 {[%emt 0:00:31]} g5 {[%emt 0:02:59]} 28. h5 {[%emt 0:06:47]} Rad8 {[%emt 0:02:23]} 29. Be4 {[%emt 0:05:31]} Nd6 {[%emt 0:02:41]} 30. Bg2 {[%emt 0:02:00]} g4 {[%emt 0:00:47]} 31. f3 {[%emt 0:00:24]} gxf3 {[%emt 0:02:20]} 32. Bxf3 {[%emt 0:00:02]} Kg5 {[%emt 0:03:30]} 33. g4 {[%emt 0:02:17]} f6 {[%emt 0:01:31]} 34. b4 {[%emt 0:04:43]} axb4+ {[%emt 0:02:16]} 35. Kxb4 {[%emt 0:00:01]} Nf7 {[%emt 0:00:31]} 36. Kc3 {[%emt 0:02:33]} e5 {[%emt 0:05:21]} 37. a5 {[%emt 0:00:55]} Re7 {[%emt 0:06:23]} 38. Bh1 {[%emt 0:03:32]} exd4+ {[%emt 0:01:12]} 39. Rxd4 {[%emt 0:00:06]} Rxd4 {[%emt 0:00:09]} 40. Rxd4 {[%emt 0:00:03]} Ne5 {[%emt 0:00:03]} 41. c5 {[%emt 0:00:42]} Nxg4 {[%emt 0:04:46]} 42. a6 {[%emt 0:03:05]} bxa6 {[%emt 0:00:03]} 43. Bxc6 {[%emt 0:00:03]} Ne5 {[%emt 0:00:04]} 44. Ba4 {[%emt 0:00:39]} Kxh5 {[%emt 0:00:48]} 45. Kb4 {[%emt 0:00:04]} g5 {[%emt 0:01:20]} 46. c6 {[%emt 0:00:09]} g4 {[%emt 0:01:47]} 47. Kc5 {[%emt 0:00:05]} f5 {[%emt 0:01:11]} 48. Kd6 {[%emt 0:00:31]} Nxc6 {[%emt 0:00:03]} 49. Bxc6 {[%emt 0:00:08]} Re2 {[%emt 0:00:41]} 50. Bb7 {[%emt 0:03:26]} Rb2 {[%emt 0:00:58]} 51. Bc8 {[%emt 0:03:32]} Kg5 {[%emt 0:00:11]} 52. Bd7 {[%emt 0:01:34]} g3 {[%emt 0:00:54]} 53. Rd1 {[%emt 0:01:18]} f4 {[%emt 0:00:48]} 54. Rg1 {[%emt 0:02:49]} Rd2+ {[%emt 0:00:22]} 55. Ke7 {[%emt 0:00:23]} Rxd7+ {[%emt 0:00:18]} 0-1

[Event "46th Roda Open 2019"]
[Site "La Roda"]
[Date "2019.04.18"]
[Round "3.2"]
[White "Bayo Milagro, Alvaro"]
[Black "Perez Candelario, Manuel"]
[Result "0-1"]
[ECO "A21"]
[WhiteElo "2333"]
[BlackElo "2615"]
[Annotator "ChessBase"]
[PlyCount "84"]
[EventDate "2019.04.17"]
[EventType "swiss"]
[EventCountry "ESP"]
[SourceTitle "playchess.com"]
[Source "ChessBase"]
[SourceQuality "1"]
[TimeControl "5400+30"]

1. c4 {[%emt 0:02:47]} e5 {[%emt 0:00:00]} 2. Nc3 {[%emt 0:00:06]} d6 {[%emt 0:00:00]} 3. d4 {[%emt 0:00:14]} exd4 {[%emt 0:02:58]} 4. Qxd4 {[%emt 0:00:12]} Nc6 {[%emt 0:01:20]} 5. Qd2 {[%emt 0:00:05]} Nf6 {[%emt 0:01:08]} 6. b3 {[%emt 0:00:24]} Be6 {[%emt 0:05:38]} 7. e4 {[%emt 0:00:10]} g6 {[%emt 0:03:38]} 8. Bb2 {[%emt 0:00:54]} Bg7 {[%emt 0:00:17]} 9. Bd3 {[%emt 0:01:20]} O-O {[%emt 0:09:41]} 10. Nge2 {[%emt 0:00:39]} Ng4 {[%emt 0:02:28]} 11. f4 {[%emt 0:19:31]} f5 {[%emt 0:10:40]} 12. O-O {[%emt 0:03:10]} Qd7 {[%emt 0:11:37]} 13. Rae1 {[%emt 0:03:11]} Rae8 {[%emt 0:00:28]} 14. Ng3 {[%emt 0:00:31]} Bd4+ {[%emt 0:03:24]} 15. Kh1 {[%emt 0:00:34]} Nxh2 {[%emt 0:07:13]} 16. Kxh2 {[%emt 0:00:16]} Qe7 {[%emt 0:00:48]} 17. Nxf5 {[%emt 0:01:18]} Rxf5 {[%emt 0:01:13]} 18. Kg3 {[%emt 0:01:48]} Rh5 {[%emt 0:06:23]} 19. Rh1 {[%emt 0:00:12]} Qg7 {[%emt 0:07:33]} 20. Nd1 {[%emt 0:02:06]} Rxh1 {[%emt 0:04:09]} 21. Rxh1 {[%emt 0:00:28]} Rf8 {[%emt 0:02:20]} 22. Bxd4 {[%emt 0:02:17]} Nxd4 {[%emt 0:00:06]} 23. Kf2 {[%emt 0:01:32]} Bg4 {[%emt 0:01:26]} 24. Nc3 {[%emt 0:01:17]} Ne6 {[%emt 0:01:53]} 25. g3 {[%emt 0:01:01]} Qd4+ {[%emt 0:02:45]} 26. Ke1 {[%emt 0:00:07]} Re8 {[%emt 0:01:27]} 27. Be2 {[%emt 0:01:16]} Bxe2 {[%emt 0:01:23]} 28. Kxe2 {[%emt 0:00:08]} Qg7 {[%emt 0:00:44]} 29. Kd1 {[%emt 0:09:00]} Nd4 {[%emt 0:00:36]} 30. g4 {[%emt 0:01:57]} c6 {[%emt 0:04:34]} 31. Kc1 {[%emt 0:02:45]} Ne2+ {[%emt 0:02:32]} 32. Kc2 {[%emt 0:00:01]} Nxc3 {[%emt 0:00:29]} 33. Qxc3 {[%emt 0:00:06]} Rxe4 {[%emt 0:00:31]} 34. Qxg7+ {[%emt 0:02:05]} Kxg7 {[%emt 0:00:02]} 35. Rf1 {[%emt 0:00:13]} Re2+ {[%emt 0:01:21]} 36. Kb1 {[%emt 0:01:12]} h5 {[%emt 0:00:46]} 37. gxh5 {[%emt 0:00:45]} gxh5 {[%emt 0:00:04]} 38. a4 {[%emt 0:01:37]} Rg2 {[%emt 0:01:38]} 39. Re1 {[%emt 0:02:48]} h4 {[%emt 0:00:44]} 40. Re7+ {[%emt 0:00:53]} Kg6 {[%emt 0:01:10]} 41. Re6+ {[%emt 0:00:42]} Kh5 {[%emt 0:01:12]} 42. f5 {[%emt 0:00:33]} h3 {[%emt 0:00:15]} 0-1

[Event "46th Roda Open 2019"]
[Site "La Roda"]
[Date "2019.04.18"]
[Round "3.3"]
[White "Buendia Pinar, Alvaro"]
[Black "Forcen Esteban, Daniel"]
[Result "1/2-1/2"]
[ECO "A40"]
[WhiteElo "2256"]
[BlackElo "2567"]
[Annotator "ChessBase"]
[PlyCount "71"]
[EventDate "2019.04.17"]
[EventType "swiss"]
[EventCountry "ESP"]
[SourceTitle "playchess.com"]
[Source "ChessBase"]
[SourceQuality "1"]
[TimeControl "5400+30"]

1. d4 {[%emt 0:00:00]} g6 {[%emt 0:00:44]} 2. Nf3 {[%emt 0:00:37]} Bg7 {[%emt 0:00:30]} 3. g3 {[%emt 0:00:34]} f5 {[%emt 0:00:32]} 4. Bg2 {[%emt 0:00:47]} Nf6 {[%emt 0:00:45]} 5. O-O {[%emt 0:00:31]} O-O {[%emt 0:00:05]} 6. Nc3 {[%emt 0:00:30]} d6 {[%emt 0:18:54]} 7. Qd3 {[%emt 0:00:29]} Nc6 {[%emt 0:05:51]} 8. e4 {[%emt 0:00:25]} e5 {[%emt 0:16:26]} 9. dxe5 {[%emt 0:02:23]} Nxe5 {[%emt 0:06:49]} 10. Nxe5 {[%emt 0:00:13]} dxe5 {[%emt 0:00:06]} 11. Qc4+ {[%emt 0:02:13]} Kh8 {[%emt 0:02:40]} 12. Be3 {[%emt 0:14:21]} c6 {[%emt 0:05:43]} 13. Bc5 {[%emt 0:03:09]} Re8 {[%emt 0:01:02]} 14. Rad1 {[%emt 0:01:17]} Bd7 {[%emt 0:06:26]} 15. exf5 {[%emt 0:08:20]} gxf5 {[%emt 0:00:36]} 16. Bh3 {[%emt 0:01:32]} Qc8 {[%emt 0:00:52]} 17. Qh4 {[%emt 0:00:31]} Nd5 {[%emt 0:11:53]} 18. Nxd5 {[%emt 0:14:20]} cxd5 {[%emt 0:00:23]} 19. Be3 {[%emt 0:01:58]} Qc6 {[%emt 0:05:48]} 20. Bg2 {[%emt 0:01:06]} Qg6 {[%emt 0:04:40]} 21. Bf3 {[%emt 0:25:19]} Bf6 {[%emt 0:08:44]} 22. Qh3 {[%emt 0:01:52]} Re7 {[%emt 0:00:46]} 23. Rxd5 {[%emt 0:01:21]} Be6 {[%emt 0:00:30]} 24. Rd6 {[%emt 0:00:53]} Rg8 {[%emt 0:00:40]} 25. Rxe6 {[%emt 0:03:53]} Rxe6 {[%emt 0:00:05]} 26. Bd5 {[%emt 0:00:41]} Rd6 {[%emt 0:00:37]} 27. Bxg8 {[%emt 0:00:34]} Kxg8 {[%emt 0:00:03]} 28. Re1 {[%emt 0:02:31]} b6 {[%emt 0:00:37]} 29. Qf1 {[%emt 0:02:37]} f4 {[%emt 0:00:44]} 30. Qc4+ {[%emt 0:00:17]} Kh8 {[%emt 0:00:42]} 31. Bc1 {[%emt 0:00:50]} Qh5 {[%emt 0:00:32]} 32. Qe4 {[%emt 0:04:31]} Rd4 {[%emt 0:00:26]} 33. Qa8+ {[%emt 0:00:11]} Rd8 {[%emt 0:00:06]} 34. Qe4 {[%emt 0:00:12]} Rd4 {[%emt 0:00:28]} 35. Qa8+ {[%emt 0:00:05]} Rd8 {[%emt 0:00:42]} 36. Qe4 {[%emt 0:00:25]} 1/2-1/2

[Event "46th Roda Open 2019"]
[Site "La Roda"]
[Date "2019.04.18"]
[Round "3.4"]
[White "Solodovnichenko, Yuri"]
[Black "Ramiro Ovejero, Juan Luis"]
[Result "1-0"]
[ECO "C11"]
[WhiteElo "2554"]
[BlackElo "2337"]
[Annotator "ChessBase"]
[PlyCount "59"]
[EventDate "2019.04.17"]
[EventType "swiss"]
[EventCountry "ESP"]
[SourceTitle "playchess.com"]
[Source "ChessBase"]
[SourceQuality "1"]
[TimeControl "5400+30"]

1. e4 {[%emt 0:00:00]} e6 {[%emt 0:00:00]} 2. d4 {[%emt 0:00:00]} d5 {[%emt 0:00:23]} 3. Nc3 {[%emt 0:00:00]} Nf6 {[%emt 0:00:08]} 4. e5 {[%emt 0:00:12]} Nfd7 {[%emt 0:00:06]} 5. Nce2 {[%emt 0:00:06]} c5 {[%emt 0:00:20]} 6. c3 {[%emt 0:00:05]} Nc6 {[%emt 0:00:20]} 7. Nf3 {[%emt 0:00:16]} b5 {[%emt 0:05:24]} 8. a3 {[%emt 0:01:03]} Rb8 {[%emt 0:04:50]} 9. Nf4 {[%emt 0:04:33]} Be7 {[%emt 0:01:07]} 10. h4 {[%emt 0:02:55]} cxd4 {[%emt 0:11:02]} 11. cxd4 {[%emt 0:00:17]} b4 {[%emt 0:00:17]} 12. Bd3 {[%emt 0:09:40]} bxa3 {[%emt 0:01:29]} 13. bxa3 {[%emt 0:00:07]} Ba6 {[%emt 0:01:01]} 14. Bxa6 {[%emt 0:13:39]} Qa5+ {[%emt 0:00:11]} 15. Kf1 {[%emt 0:00:32]} Qxa6+ {[%emt 0:00:04]} 16. Kg1 {[%emt 0:00:06]} O-O {[%emt 0:04:51]} 17. Rh3 {[%emt 0:04:23]} Bd8 {[%emt 0:04:33]} 18. Nh5 {[%emt 0:05:50]} Ne7 {[%emt 0:09:35]} 19. Bg5 {[%emt 0:31:28]} Ng6 {[%emt 0:16:47]} 20. Rg3 {[%emt 0:01:45]} Rb2 {[%emt 0:00:52]} 21. Bc1 {[%emt 0:02:52]} Re2 {[%emt 0:03:37]} 22. Be3 {[%emt 0:04:30]} Ba5 {[%emt 0:05:03]} 23. Nxg7 {[%emt 0:03:22]} Kxg7 {[%emt 0:00:16]} 24. h5 {[%emt 0:00:03]} Rc8 {[%emt 0:11:32]} 25. Rc1 {[%emt 0:00:51]} Ra2 {[%emt 0:12:33]} 26. hxg6 {[%emt 0:01:15]} hxg6 {[%emt 0:00:06]} 27. Rh3 {[%emt 0:02:38]} Rxc1 {[%emt 0:03:21]} 28. Qxc1 {[%emt 0:00:17]} Bd8 {[%emt 0:00:48]} 29. Bh6+ {[%emt 0:02:18]} Kg8 {[%emt 0:00:04]} 30. Bg7 {[%emt 0:00:16]} 1-0